[Event "Condigne Dutch Open 2018"]
[Site "Dieren"]
[Date "2018.07.26"]
[Round "3"]
[White "Ivanisevic, Ivan"]
[Black "Bosboom, Manuel"]
[Result "1/2-1/2"]
[ECO "A53"]
[WhiteElo "2567"]
[BlackElo "2403"]
[Annotator "ChessBase"]
[PlyCount "83"]
[EventDate "2018.07.24"]
[EventType "swiss"]
[EventCountry "NED"]
[SourceTitle "playchess.com"]
[Source "ChessBase"]
[SourceQuality "1"]
[TimeControl "40/5400+30:1800+30"]

1. d4 {[%emt 0:00:00]} Nf6 {[%emt 0:00:11]} 2. c4 {[%emt 0:00:00]} d6 {[%emt 0:00:21]} 3. Nc3 {[%emt 0:00:00]} Nbd7 {[%emt 0:00:12]} 4. e4 {[%emt 0:03:59]} e5 {[%emt 0:00:34]} 5. Nge2 {[%emt 0:00:19]} Be7 {[%emt 0:09:33]} 6. d5 {[%emt 0:04:48]} a5 {[%emt 0:02:58]} 7. Ng3 {[%emt 0:02:02]} h5 {[%emt 0:02:41]} 8. Be2 {[%emt 0:03:52]} g6 {[%emt 0:03:03]} 9. Bd2 {[%emt 0:05:30]} Nc5 {[%emt 0:07:16]} 10. Qc2 {[%emt 0:00:06]} c6 {[%emt 0:05:58]} 11. Nf1 {[%emt 0:08:49]} cxd5 {[%emt 0:10:01]} 12. cxd5 {[%emt 0:00:07]} Bd7 {[%emt 0:00:36]} 13. f3 {[%emt 0:02:38]} Rc8 {[%emt 0:08:48]} 14. a4 {[%emt 0:00:21]} h4 {[%emt 0:05:04]} 15. Ne3 {[%emt 0:08:20]} Nh5 {[%emt 0:03:41]} 16. Nc4 {[%emt 0:08:52]} O-O {[%emt 0:03:10]} 17. Nb5 {[%emt 0:05:39]} Bxb5 {[%emt 0:01:43]} 18. axb5 {[%emt 0:01:21]} a4 {[%emt 0:08:36]} 19. Be3 {[%emt 0:13:09]} Bg5 {[%emt 0:01:20]} 20. Bf2 {[%emt 0:00:06]} Nf4 {[%emt 0:11:10]} 21. O-O {[%emt 0:05:56]} Nb3 {[%emt 0:06:19]} 22. Rxa4 {[%emt 0:02:40]} Nd4 {[%emt 0:00:22]} 23. Bxd4 {[%emt 0:00:12]} exd4 {[%emt 0:00:02]} 24. Qd1 {[%emt 0:14:39]} Qf6 {[%emt 0:02:39]} 25. Rf2 {[%emt 0:04:11]} Nh5 {[%emt 0:02:41]} 26. f4 {[%emt 0:00:13]} Nxf4 {[%emt 0:00:04]} 27. Bg4 {[%emt 0:00:05]} d3 {[%emt 0:01:48]} 28. g3 {[%emt 0:01:03]} hxg3 {[%emt 0:00:33]} 29. hxg3 {[%emt 0:00:05]} Qd4 {[%emt 0:00:58]} 30. Nxd6 {[%emt 0:02:18]} Qe3 {[%emt 0:01:14]} 31. Qf3 {[%emt 0:00:10]} Rc1+ {[%emt 0:00:18]} 32. Kh2 {[%emt 0:00:06]} Kg7 {[%emt 0:00:26]} 33. gxf4 {[%emt 0:01:07]} Rh8+ {[%emt 0:00:01]} 34. Bh3 {[%emt 0:00:54]} Rh1+ {[%emt 0:02:12]} 35. Kg2 {[%emt 0:01:52]} R8xh3 {[%emt 0:00:43]} 36. Qxe3 {[%emt 0:00:37]} R1h2+ {[%emt 0:00:18]} 37. Kg1 {[%emt 0:00:12]} Rh1+ {[%emt 0:00:20]} 38. Kg2 {[%emt 0:00:02]} R1h2+ {[%emt 0:00:53]} 39. Kg1 {[%emt 0:00:05]} Rh1+ {[%emt 0:00:23]} 40. Kg2 {[%emt 0:00:07]} R3h2+ {[%emt 0:30:26]} 41. Kf3 {[%emt 0:30:47]} Rh3+ {[%emt 0:00:38]} 42. Kg2 {[%emt 0:00:00]} 1/2-1/2

[Event "Condigne Dutch Open 2018"]
[Site "Dieren"]
[Date "2018.07.26"]
[Round "3"]
[White "Ikonnikov, Vyacheslav"]
[Black "Vrolijk, Liam"]
[Result "1-0"]
[ECO "D39"]
[WhiteElo "2536"]
[BlackElo "2419"]
[Annotator "ChessBase"]
[PlyCount "81"]
[EventDate "2018.07.24"]
[EventType "swiss"]
[EventCountry "NED"]
[SourceTitle "playchess.com"]
[Source "ChessBase"]
[SourceQuality "1"]
[TimeControl "40/5400+30:1800+30"]

1. d4 {[%emt 0:00:59]} Nf6 {[%emt 0:00:12]} 2. Nf3 {[%emt 0:00:33]} d5 {[%emt 0:00:10]} 3. c4 {[%emt 0:00:17]} e6 {[%emt 0:00:08]} 4. Bg5 {[%emt 0:01:17]} Bb4+ {[%emt 0:00:59]} 5. Nc3 {[%emt 0:00:25]} dxc4 {[%emt 0:00:21]} 6. Qa4+ {[%emt 0:06:11]} Nc6 {[%emt 0:00:44]} 7. e4 {[%emt 0:00:21]} Bd7 {[%emt 0:01:45]} 8. Qc2 {[%emt 0:00:26]} h6 {[%emt 0:00:59]} 9. Bd2 {[%emt 0:05:20]} b5 {[%emt 0:00:33]} 10. Nxb5 {[%emt 0:06:35]} Bxd2+ {[%emt 0:01:26]} 11. Nxd2 {[%emt 0:00:28]} a6 {[%emt 0:07:00]} 12. Na3 {[%emt 0:15:57]} Nxd4 {[%emt 0:03:46]} 13. Qxc4 {[%emt 0:00:25]} Bb5 {[%emt 0:08:20]} 14. Qc5 {[%emt 0:15:14]} Qd6 {[%emt 0:08:38]} 15. Rc1 {[%emt 0:00:06]} O-O {[%emt 0:03:15]} 16. f3 {[%emt 0:00:07]} Rfc8 {[%emt 0:04:52]} 17. Qxd6 {[%emt 0:08:45]} cxd6 {[%emt 0:00:08]} 18. Rxc8+ {[%emt 0:00:03]} Rxc8 {[%emt 0:00:08]} 19. Kd1 {[%emt 0:00:03]} d5 {[%emt 0:09:49]} 20. Nxb5 {[%emt 0:00:17]} axb5 {[%emt 0:00:07]} 21. Bd3 {[%emt 0:00:03]} dxe4 {[%emt 0:03:42]} 22. Nxe4 {[%emt 0:00:09]} Nd5 {[%emt 0:00:19]} 23. Kd2 {[%emt 0:06:29]} Nf4 {[%emt 0:02:42]} 24. Rg1 {[%emt 0:02:30]} Nxd3 {[%emt 0:06:59]} 25. Kxd3 {[%emt 0:00:17]} Rd8 {[%emt 0:09:47]} 26. Ke3 {[%emt 0:00:23]} f5 {[%emt 0:01:49]} 27. Nc5 {[%emt 0:05:24]} f4+ {[%emt 0:07:12]} 28. Ke4 {[%emt 0:04:32]} Ne2 {[%emt 0:05:29]} 29. Re1 {[%emt 0:00:13]} Rd4+ {[%emt 0:01:05]} 30. Ke5 {[%emt 0:00:09]} Rd5+ {[%emt 0:00:51]} 31. Kxe6 {[%emt 0:04:10]} Rd2 {[%emt 0:00:05]} 32. Ke5 {[%emt 0:12:56]} Rxb2 {[%emt 0:01:42]} 33. Rd1 {[%emt 0:00:04]} Nc3 {[%emt 0:01:56]} 34. Rd8+ {[%emt 0:00:56]} Kh7 {[%emt 0:00:20]} 35. Kf5 {[%emt 0:02:43]} Rb1 {[%emt 0:06:28]} 36. Ne6 {[%emt 0:00:16]} Rd1 {[%emt 0:00:31]} 37. Rxd1 {[%emt 0:01:05]} Nxd1 {[%emt 0:00:06]} 38. Nd4 {[%emt 0:00:21]} Nc3 {[%emt 0:00:51]} 39. a3 {[%emt 0:00:06]} Kg8 {[%emt 0:00:50]} 40. Ke6 {[%emt 0:00:48]} g5 {[%emt 0:32:11]} 41. Kd6 {[%emt 0:30:16]} 1-0

[Event "Condigne Dutch Open 2018"]
[Site "Dieren"]
[Date "2018.07.26"]
[Round "3"]
[White "Lobanov, Sergei"]
[Black "Wiersma, Eelke"]
[Result "1-0"]
[ECO "B07"]
[WhiteElo "2521"]
[BlackElo "2346"]
[Annotator "RC"]
[PlyCount "97"]
[EventDate "2018.07.24"]
[EventType "swiss"]
[EventCountry "NED"]
[SourceTitle "playchess.com"]
[Source "ChessBase"]
[SourceQuality "1"]
[TimeControl "40/5400+30:1800+30"]

1. e4 {[%emt 0:03:45]} d6 {[%emt 0:01:03]} 2. d4 {[%emt 0:00:07]} Nf6 {[%emt 0:00:09]} 3. Nc3 {[%emt 0:00:04]} g6 {[%emt 0:00:08]} 4. Be3 {[%emt 0:01:54]} a6 {[%emt 0:00:37]} 5. f3 {[%emt 0:01:00]} b5 {[%emt 0:00:56]} 6. Qd2 {[%emt 0:00:15]} Nbd7 {[%emt 0:01:25]} 7. a4 {[%emt 0:08:07]} b4 {[%emt 0:01:44]} 8. Na2 {[%emt 0:00:52]} a5 {[%emt 0:09:06]} 9. Bb5 {[%emt 0:04:14]} Bb7 {[%emt 0:03:18]} 10. d5 {[%emt 0:02:10]} Bg7 {[%emt 0:02:26]} 11. Ne2 {[%emt 0:00:42]} O-O {[%emt 0:00:17]} 12. Nd4 {[%emt 0:00:38]} Ne5 {[%emt 0:02:18]} 13. c3 {[%emt 0:08:02]} e6 {[%emt 0:15:24]} 14. Nc6 {[%emt 0:02:09]} Bxc6 {[%emt 0:03:45]} 15. dxc6 {[%emt 0:00:50]} Nxe4 {[%emt 0:09:16]} 16. fxe4 {[%emt 0:00:33]} Qh4+ {[%emt 0:00:07]} 17. Bf2 {[%emt 0:15:14]} Qxe4+ {[%emt 0:00:23]} 18. Kf1 {[%emt 0:00:32]} bxc3 {[%emt 0:12:58]} 19. Nxc3 {[%emt 0:00:39]} Qb4 {[%emt 0:00:25]} 20. Qe2 {[%emt 0:04:45]} Ng4 {[%emt 0:14:55]} 21. Nd1 {[%emt 0:00:50]} Nxf2 {[%emt 0:01:32]} 22. Qxf2 {[%emt 0:01:07]} d5 {[%emt 0:00:21]} 23. h4 {[%emt 0:11:00]} d4 {[%emt 0:01:47]} 24. Rh3 {[%emt 0:03:00]} e5 {[%emt 0:02:39]} 25. h5 {[%emt 0:05:26]} Rae8 {[%emt 0:08:14]} 26. Qe1 {[%emt 0:01:03]} Qxe1+ {[%emt 0:01:57]} 27. Kxe1 {[%emt 0:00:01]} gxh5 {[%emt 0:00:17]} 28. Rxh5 {[%emt 0:02:57]} f5 {[%emt 0:00:15]} 29. Rc1 {[%emt 0:01:24]} e4 {[%emt 0:00:08]} 30. Rc5 {[%emt 0:03:19]} Be5 {[%emt 0:00:30]} 31. Bc4+ {[%emt 0:02:30]} Kg7 {[%emt 0:00:10]} 32. Rxa5 {[%emt 0:00:26]} Bg3+ {[%emt 0:01:12]} 33. Kf1 {[%emt 0:01:45]} Kg6 {[%emt 0:00:19]} 34. Rh3 {[%emt 0:00:04]} Bd6 {[%emt 0:00:22]} 35. Rd5 {[%emt 0:02:07]} d3 {[%emt 0:00:38]} 36. Nc3 {[%emt 0:03:36]} Re5 {[%emt 0:02:43]} 37. b4 {[%emt 0:00:21]} Rfe8 {[%emt 0:01:27]} 38. Rxe5 {[%emt 0:01:26]} Bxe5 {[%emt 0:00:10]} 39. Nd5 {[%emt 0:02:06]} h5 {[%emt 0:00:24]} 40. a5 {[%emt 0:00:58]} Kg5 {[%emt 0:30:16]} 41. b5 {[%emt 0:31:02]} Ra8 {[%emt 0:00:07]} 42. a6 {[%emt 0:01:01]} f4 {[%emt 0:00:08]} 43. b6 {[%emt 0:02:14]} cxb6 {[%emt 0:00:17]} 44. c7 {[%emt 0:01:32]} Rc8 {[%emt 0:01:26]} 45. a7 {[%emt 0:00:37]} Ra8 {[%emt 0:01:05]} 46. c8=Q {[%emt 0:00:00]} Rxc8 {[%emt 0:00:00]} 47. Nxb6 {[%emt 0:00:00]} e3 {[%emt 0:00:00]} 48. Bxd3 {[%emt 0:00:00]} Rc1+ {[%emt 0:00:00]} 49. Ke2 {[%emt 0:00:00]} 1-0

[Event "Condigne Dutch Open 2018"]
[Site "Dieren"]
[Date "2018.07.26"]
[Round "3"]
[White "Hausrath, Daniel"]
[Black "Ashwath, R.."]
[Result "0-1"]
[ECO "A11"]
[WhiteElo "2495"]
[BlackElo "2285"]
[Annotator "ChessBase"]
[PlyCount "90"]
[EventDate "2018.07.24"]
[EventType "swiss"]
[EventCountry "NED"]
[SourceTitle "playchess.com"]
[Source "ChessBase"]
[SourceQuality "1"]
[TimeControl "40/5400+30:1800+30"]

1. Nf3 {[%emt 0:00:00]} d5 {[%emt 0:00:30]} 2. g3 {[%emt 0:00:00]} Nf6 {[%emt 0:00:05]} 3. Bg2 {[%emt 0:00:00]} c6 {[%emt 0:00:04]} 4. c4 {[%emt 0:00:03]} dxc4 {[%emt 0:00:28]} 5. O-O {[%emt 0:00:10]} Nbd7 {[%emt 0:00:30]} 6. Na3 {[%emt 0:01:15]} Nb6 {[%emt 0:01:15]} 7. Qc2 {[%emt 0:01:08]} g6 {[%emt 0:01:13]} 8. Nxc4 {[%emt 0:00:24]} Nxc4 {[%emt 0:00:16]} 9. Qxc4 {[%emt 0:00:06]} Bg7 {[%emt 0:00:10]} 10. e4 {[%emt 0:01:18]} O-O {[%emt 0:02:01]} 11. Re1 {[%emt 0:01:59]} Be6 {[%emt 0:07:40]} 12. Qc2 {[%emt 0:13:23]} Ng4 {[%emt 0:10:54]} 13. Qc5 {[%emt 0:39:12]} b6 {[%emt 0:21:10]} 14. Qxc6 {[%emt 0:04:15]} Bd4 {[%emt 0:02:15]} 15. Rf1 {[%emt 0:02:17]} Rc8 {[%emt 0:02:19]} 16. Qa4 {[%emt 0:01:08]} Bc4 {[%emt 0:11:24]} 17. d3 {[%emt 0:03:48]} b5 {[%emt 0:02:33]} 18. Qd1 {[%emt 0:01:33]} Nxf2 {[%emt 0:03:23]} 19. Rxf2 {[%emt 0:00:56]} Bxf2+ {[%emt 0:00:13]} 20. Kxf2 {[%emt 0:00:05]} Bxd3 {[%emt 0:00:19]} 21. Bh6 {[%emt 0:11:35]} Rc2+ {[%emt 0:03:10]} 22. Kg1 {[%emt 0:00:26]} Qb6+ {[%emt 0:04:42]} 23. Kh1 {[%emt 0:00:02]} Rd8 {[%emt 0:05:27]} 24. Qe1 {[%emt 0:02:58]} Re2 {[%emt 0:06:49]} 25. Qc3 {[%emt 0:00:15]} f6 {[%emt 0:00:20]} 26. e5 {[%emt 0:07:07]} Qf2 {[%emt 0:02:27]} 27. Rg1 {[%emt 0:00:42]} Rc2 {[%emt 0:05:37]} 28. Qa5 {[%emt 0:02:35]} Rd7 {[%emt 0:00:59]} 29. exf6 {[%emt 0:00:51]} Bf1 {[%emt 0:01:55]} 30. f7+ {[%emt 0:01:41]} Kxf7 {[%emt 0:00:03]} 31. Ne1 {[%emt 0:01:07]} Bxg2+ {[%emt 0:01:41]} 32. Rxg2 {[%emt 0:00:30]} Qf1+ {[%emt 0:01:25]} 33. Rg1 {[%emt 0:00:02]} Qe2 {[%emt 0:00:06]} 34. Rg2 {[%emt 0:01:17]} Qf1+ {[%emt 0:00:04]} 35. Rg1 {[%emt 0:00:02]} Qe2 {[%emt 0:00:02]} 36. Rg2 {[%emt 0:00:04]} Qe4 {[%emt 0:03:44]} 37. Kg1 {[%emt 0:02:15]} Rxg2+ {[%emt 0:01:05]} 38. Nxg2 {[%emt 0:00:02]} Qb1+ {[%emt 0:00:03]} 39. Ne1 {[%emt 0:00:35]} Qxb2 {[%emt 0:00:43]} 40. Be3 {[%emt 0:00:53]} Qe2 {[%emt 0:30:40]} 41. Bf2 {[%emt 0:31:39]} Rd1 {[%emt 0:00:00]} 42. a3 {[%emt 0:00:00]} a6 {[%emt 0:00:00]} 43. Qc3 {[%emt 0:00:00]} Rd2 {[%emt 0:00:00]} 44. Qc5 {[%emt 0:00:00]} a5 {[%emt 0:00:00]} 45. Kg2 {[%emt 0:00:00]} Qxe1 {[%emt 0:00:00]} 0-1

[Event "Condigne Dutch Open 2018"]
[Site "Dieren"]
[Date "2018.07.26"]
[Round "3"]
[White "Van Foreest, Lucas"]
[Black "Schoppen, Casper"]
[Result "1/2-1/2"]
[ECO "C77"]
[WhiteElo "2488"]
[BlackElo "2395"]
[Annotator "ChessBase"]
[PlyCount "83"]
[EventDate "2018.07.24"]
[EventType "swiss"]
[EventCountry "NED"]
[SourceTitle "playchess.com"]
[Source "ChessBase"]
[SourceQuality "1"]
[TimeControl "40/5400+30:1800+30"]

1. e4 {[%emt 0:00:00]} e5 {[%emt 0:00:25]} 2. Nf3 {[%emt 0:00:00]} Nc6 {[%emt 0:00:03]} 3. Bb5 {[%emt 0:00:00]} a6 {[%emt 0:00:23]} 4. Ba4 {[%emt 0:00:00]} Nf6 {[%emt 0:00:05]} 5. Qe2 {[%emt 0:01:31]} b5 {[%emt 0:00:25]} 6. Bb3 {[%emt 0:00:20]} Bc5 {[%emt 0:00:22]} 7. c3 {[%emt 0:00:29]} O-O {[%emt 0:00:25]} 8. d3 {[%emt 0:00:17]} h6 {[%emt 0:02:08]} 9. O-O {[%emt 0:01:13]} Re8 {[%emt 0:00:40]} 10. Be3 {[%emt 0:02:29]} Bf8 {[%emt 0:02:14]} 11. Rd1 {[%emt 0:04:23]} d5 {[%emt 0:02:54]} 12. h3 {[%emt 0:00:59]} Na5 {[%emt 0:11:35]} 13. Bc2 {[%emt 0:01:09]} c5 {[%emt 0:01:14]} 14. Bc1 {[%emt 0:19:35]} d4 {[%emt 0:14:42]} 15. Nbd2 {[%emt 0:00:28]} Nc6 {[%emt 0:01:00]} 16. Nf1 {[%emt 0:00:18]} Be6 {[%emt 0:02:45]} 17. Bb3 {[%emt 0:04:04]} Qd7 {[%emt 0:06:21]} 18. Bxe6 {[%emt 0:04:12]} Qxe6 {[%emt 0:00:21]} 19. Bd2 {[%emt 0:00:08]} Rad8 {[%emt 0:01:55]} 20. Be1 {[%emt 0:00:44]} Nh5 {[%emt 0:06:17]} 21. Qc2 {[%emt 0:00:21]} Nf4 {[%emt 0:02:56]} 22. Bd2 {[%emt 0:05:24]} dxc3 {[%emt 0:04:32]} 23. Bxc3 {[%emt 0:00:27]} Rd7 {[%emt 0:02:18]} 24. Ne1 {[%emt 0:04:59]} Red8 {[%emt 0:11:51]} 25. b3 {[%emt 0:00:15]} g6 {[%emt 0:07:25]} 26. Ng3 {[%emt 0:03:44]} Nd4 {[%emt 0:05:20]} 27. Qb2 {[%emt 0:00:31]} Nc6 {[%emt 0:03:50]} 28. Qc2 {[%emt 0:00:45]} Nd4 {[%emt 0:00:06]} 29. Qb2 {[%emt 0:00:52]} h5 {[%emt 0:02:46]} 30. Ba5 {[%emt 0:00:10]} Rb8 {[%emt 0:00:52]} 31. Bc3 {[%emt 0:03:08]} Rbd8 {[%emt 0:00:43]} 32. Ba5 {[%emt 0:02:23]} Rc8 {[%emt 0:00:09]} 33. Bc3 {[%emt 0:01:04]} Bg7 {[%emt 0:01:55]} 34. Rac1 {[%emt 0:03:38]} Rdc7 {[%emt 0:00:39]} 35. Bxd4 {[%emt 0:01:12]} cxd4 {[%emt 0:00:10]} 36. Rxc7 {[%emt 0:00:20]} Rxc7 {[%emt 0:00:07]} 37. Rd2 {[%emt 0:01:37]} Qc8 {[%emt 0:02:26]} 38. Ne2 {[%emt 0:01:12]} Nxe2+ {[%emt 0:01:24]} 39. Rxe2 {[%emt 0:00:05]} Rc1 {[%emt 0:00:29]} 40. Kf1 {[%emt 0:00:30]} Rc3 {[%emt 0:32:16]} 41. Rc2 {[%emt 0:30:58]} Bf8 {[%emt 0:00:00]} 42. Qc1 {[%emt 0:00:00]} 1/2-1/2

[Event "Condigne Dutch Open 2018"]
[Site "Dieren"]
[Date "2018.07.26"]
[Round "3"]
[White "Leenhouts, Koen"]
[Black "L'Ami, Erwin"]
[Result "1/2-1/2"]
[ECO "E39"]
[WhiteElo "2483"]
[BlackElo "2636"]
[Annotator "ChessBase"]
[PlyCount "57"]
[EventDate "2018.07.24"]
[EventType "swiss"]
[EventCountry "NED"]
[SourceTitle "playchess.com"]
[Source "ChessBase"]
[SourceQuality "1"]
[TimeControl "40/5400+30:1800+30"]

1. d4 {[%emt 0:03:30]} Nf6 {[%emt 0:00:00]} 2. c4 {[%emt 0:00:07]} e6 {[%emt 0:00:00]} 3. Nc3 {[%emt 0:00:06]} Bb4 {[%emt 0:00:06]} 4. Qc2 {[%emt 0:00:08]} c5 {[%emt 0:01:22]} 5. dxc5 {[%emt 0:00:11]} O-O {[%emt 0:00:20]} 6. Nf3 {[%emt 0:00:14]} Na6 {[%emt 0:00:46]} 7. g3 {[%emt 0:00:10]} Nxc5 {[%emt 0:00:24]} 8. Bg2 {[%emt 0:00:06]} Nce4 {[%emt 0:00:58]} 9. O-O {[%emt 0:00:10]} Bxc3 {[%emt 0:00:46]} 10. bxc3 {[%emt 0:00:07]} d5 {[%emt 0:00:07]} 11. Nd2 {[%emt 0:04:54]} Nxd2 {[%emt 0:03:13]} 12. Bxd2 {[%emt 0:01:13]} dxc4 {[%emt 0:07:36]} 13. Bg5 {[%emt 0:05:05]} Qc7 {[%emt 0:08:14]} 14. Bxf6 {[%emt 0:02:31]} gxf6 {[%emt 0:00:21]} 15. Rab1 {[%emt 0:03:31]} Rb8 {[%emt 0:03:10]} 16. Rb5 {[%emt 0:05:04]} e5 {[%emt 0:07:48]} 17. Qc1 {[%emt 0:17:31]} Kg7 {[%emt 0:05:54]} 18. f4 {[%emt 0:02:03]} Bd7 {[%emt 0:14:45]} 19. fxe5 {[%emt 0:05:32]} Bxb5 {[%emt 0:00:23]} 20. exf6+ {[%emt 0:00:06]} Kh8 {[%emt 0:00:05]} 21. Qh6 {[%emt 0:00:09]} Rg8 {[%emt 0:00:15]} 22. Be4 {[%emt 0:00:05]} Rg6 {[%emt 0:01:04]} 23. Bxg6 {[%emt 0:00:06]} fxg6 {[%emt 0:00:08]} 24. f7 {[%emt 0:00:05]} Qc5+ {[%emt 0:00:22]} 25. e3 {[%emt 0:00:43]} Rf8 {[%emt 0:00:50]} 26. Qf4 {[%emt 0:10:16]} Kg7 {[%emt 0:02:05]} 27. Qf6+ {[%emt 0:03:35]} Kh6 {[%emt 0:00:12]} 28. Qh4+ {[%emt 0:00:07]} Kg7 {[%emt 0:01:08]} 29. Qf6+ {[%emt 0:00:10]} 1/2-1/2

[Event "Condigne Dutch Open 2018"]
[Site "Dieren"]
[Date "2018.07.26"]
[Round "3"]
[White "Lai, Hing Ting"]
[Black "Buckels, Valentin"]
[Result "1-0"]
[ECO "E11"]
[WhiteElo "2447"]
[BlackElo "2353"]
[Annotator "NA"]
[PlyCount "65"]
[EventDate "2018.07.24"]
[EventType "swiss"]
[EventCountry "NED"]
[SourceTitle "playchess.com"]
[Source "ChessBase"]
[SourceQuality "1"]
[TimeControl "40/5400+30:1800+30"]

1. d4 {[%emt 0:00:00]} Nf6 {[%emt 0:00:06]} 2. c4 {[%emt 0:00:00]} e6 {[%emt 0:00:06]} 3. Nf3 {[%emt 0:00:00]} Bb4+ {[%emt 0:00:05]} 4. Bd2 {[%emt 0:00:09]} c5 {[%emt 0:00:08]} 5. Bxb4 {[%emt 0:00:11]} cxb4 {[%emt 0:00:07]} 6. e3 {[%emt 0:00:22]} b6 {[%emt 0:01:58]} 7. Bd3 {[%emt 0:03:46]} Bb7 {[%emt 0:00:17]} 8. O-O {[%emt 0:02:18]} O-O {[%emt 0:00:11]} 9. Nbd2 {[%emt 0:00:45]} d6 {[%emt 0:06:50]} 10. Re1 {[%emt 0:09:30]} Re8 {[%emt 0:02:39]} 11. Nf1 {[%emt 0:05:57]} Nbd7 {[%emt 0:04:18]} 12. e4 {[%emt 0:01:42]} e5 {[%emt 0:00:13]} 13. Ng3 {[%emt 0:00:16]} g6 {[%emt 0:03:53]} 14. Qd2 {[%emt 0:03:39]} a5 {[%emt 0:00:12]} 15. Bc2 {[%emt 0:02:11]} Rc8 {[%emt 0:07:08]} 16. b3 {[%emt 0:08:21]} Qe7 {[%emt 0:04:45]} 17. Rad1 {[%emt 0:01:25]} Red8 {[%emt 0:03:48]} 18. Qg5 {[%emt 0:06:19]} Kf8 {[%emt 0:12:14]} 19. Re2 {[%emt 0:03:10]} Ng8 {[%emt 0:02:09]} 20. Qe3 {[%emt 0:00:25]} Ngf6 {[%emt 0:04:15]} 21. Red2 {[%emt 0:01:08]} Ng4 {[%emt 0:10:42]} 22. Qe2 {[%emt 0:00:52]} Kg7 {[%emt 0:00:33]} 23. Nxe5 {[%emt 0:03:45]} Ngxe5 {[%emt 0:04:42]} 24. dxe5 {[%emt 0:01:10]} Nxe5 {[%emt 0:00:26]} 25. f4 {[%emt 0:03:40]} Nc6 {[%emt 0:00:19]} 26. Qf2 {[%emt 0:04:57]} Qc7 {[%emt 0:00:39]} 27. Nf1 {[%emt 0:00:20]} Ba6 {[%emt 0:05:24]} 28. Ne3 {[%emt 0:00:50]} b5 {[%emt 0:00:34]} 29. cxb5 {[%emt 0:11:52]} Bxb5 {[%emt 0:00:02]} 30. Rd5 {[%emt 0:00:45]} Ba6 {[%emt 0:03:23]} 31. h4 {[%emt 0:02:56]} Ne7 {[%emt 0:05:48]} 32. R5d2 {[%emt 0:00:20]} Qb6 {[%emt 0:07:44]} 33. Nf5+ {[%emt 0:00:09]} 1-0

[Event "Condigne Dutch Open 2018"]
[Site "Dieren"]
[Date "2018.07.26"]
[Round "3"]
[White "Himanshu, Sharma"]
[Black "Chanda, Sandipan"]
[Result "1/2-1/2"]
[ECO "B34"]
[WhiteElo "2420"]
[BlackElo "2548"]
[Annotator "ChessBase"]
[PlyCount "70"]
[EventDate "2018.07.24"]
[EventType "swiss"]
[EventCountry "NED"]
[SourceTitle "playchess.com"]
[Source "ChessBase"]
[SourceQuality "1"]
[TimeControl "40/5400+30:1800+30"]

1. e4 {[%emt 0:01:58]} c5 {[%emt 0:00:37]} 2. Nc3 {[%emt 0:00:14]} d6 {[%emt 0:00:13]} 3. d4 {[%emt 0:01:34]} cxd4 {[%emt 0:00:23]} 4. Qxd4 {[%emt 0:00:03]} Nc6 {[%emt 0:00:11]} 5. Qd2 {[%emt 0:00:25]} g6 {[%emt 0:00:11]} 6. Nge2 {[%emt 0:01:39]} Bh6 {[%emt 0:00:36]} 7. Qd1 {[%emt 0:00:32]} Bg7 {[%emt 0:01:59]} 8. g3 {[%emt 0:01:05]} Bg4 {[%emt 0:10:27]} 9. Bg2 {[%emt 0:00:07]} Bxc3+ {[%emt 0:02:39]} 10. bxc3 {[%emt 0:00:07]} Bxe2 {[%emt 0:00:09]} 11. Qxe2 {[%emt 0:00:16]} Qa5 {[%emt 0:00:14]} 12. O-O {[%emt 0:01:18]} Nf6 {[%emt 0:00:50]} 13. Rb1 {[%emt 0:02:55]} O-O {[%emt 0:02:56]} 14. Rxb7 {[%emt 0:03:30]} Rab8 {[%emt 0:01:36]} 15. Rb3 {[%emt 0:09:42]} Qxa2 {[%emt 0:03:17]} 16. Ra3 {[%emt 0:06:57]} Qe6 {[%emt 0:00:42]} 17. Be3 {[%emt 0:01:00]} Rfc8 {[%emt 0:02:27]} 18. Re1 {[%emt 0:07:09]} Rc7 {[%emt 0:09:18]} 19. Qd1 {[%emt 0:07:32]} Ng4 {[%emt 0:04:58]} 20. Bd2 {[%emt 0:08:19]} Nge5 {[%emt 0:01:51]} 21. Bh6 {[%emt 0:05:11]} Nc4 {[%emt 0:03:23]} 22. Rb3 {[%emt 0:01:48]} Qe5 {[%emt 0:09:07]} 23. Qd5 {[%emt 0:02:50]} Nb6 {[%emt 0:02:52]} 24. Qd3 {[%emt 0:10:31]} Qh5 {[%emt 0:02:59]} 25. Be3 {[%emt 0:02:09]} Ne5 {[%emt 0:00:20]} 26. Qb5 {[%emt 0:01:42]} Nbd7 {[%emt 0:09:09]} 27. Qd5 {[%emt 0:00:26]} Rbc8 {[%emt 0:03:58]} 28. Bd4 {[%emt 0:04:37]} Nc5 {[%emt 0:05:22]} 29. Ra3 {[%emt 0:05:40]} Nf3+ {[%emt 0:08:53]} 30. Bxf3 {[%emt 0:00:11]} Qxf3 {[%emt 0:00:04]} 31. Raa1 {[%emt 0:00:23]} e5 {[%emt 0:00:31]} 32. Bxc5 {[%emt 0:04:14]} Rxc5 {[%emt 0:00:07]} 33. Qxd6 {[%emt 0:00:09]} Rxc3 {[%emt 0:00:12]} 34. Qxe5 {[%emt 0:01:05]} Rxc2 {[%emt 0:00:06]} 35. Qd4 {[%emt 0:02:08]} R2c4 {[%emt 0:04:50]} 1/2-1/2

[Event "Condigne Dutch Open 2018"]
[Site "Dieren"]
[Date "2018.07.26"]
[Round "3"]
[White "Hendriks, Willy"]
[Black "De Jong, Tom"]
[Result "1/2-1/2"]
[ECO "A25"]
[WhiteElo "2417"]
[BlackElo "2201"]
[Annotator "NA"]
[PlyCount "58"]
[EventDate "2018.07.24"]
[EventType "swiss"]
[EventCountry "NED"]
[SourceTitle "playchess.com"]
[Source "ChessBase"]
[SourceQuality "1"]
[TimeControl "40/5400+30:1800+30"]

1. c4 {[%emt 0:00:00]} Nf6 {[%emt 0:00:13]} 2. Nc3 {[%emt 0:00:00]} g6 {[%emt 0:00:08]} 3. g3 {[%emt 0:00:05]} Bg7 {[%emt 0:00:08]} 4. Bg2 {[%emt 0:00:05]} O-O {[%emt 0:00:08]} 5. d3 {[%emt 0:00:08]} d6 {[%emt 0:01:04]} 6. e3 {[%emt 0:00:17]} e5 {[%emt 0:03:33]} 7. Nge2 {[%emt 0:00:17]} Nc6 {[%emt 0:00:26]} 8. O-O {[%emt 0:00:44]} Be6 {[%emt 0:02:28]} 9. Nd5 {[%emt 0:02:59]} Qd7 {[%emt 0:03:22]} 10. Nec3 {[%emt 0:04:30]} Nd8 {[%emt 0:04:10]} 11. e4 {[%emt 0:14:05]} c6 {[%emt 0:03:25]} 12. Nxf6+ {[%emt 0:03:15]} Bxf6 {[%emt 0:00:02]} 13. f4 {[%emt 0:05:20]} Bg7 {[%emt 0:05:20]} 14. Be3 {[%emt 0:04:23]} f5 {[%emt 0:02:29]} 15. Qd2 {[%emt 0:02:46]} fxe4 {[%emt 0:10:04]} 16. Nxe4 {[%emt 0:05:22]} Bf5 {[%emt 0:10:04]} 17. fxe5 {[%emt 0:09:16]} Bxe5 {[%emt 0:08:35]} 18. Rf2 {[%emt 0:12:43]} Bg7 {[%emt 0:12:41]} 19. Raf1 {[%emt 0:01:57]} Nf7 {[%emt 0:06:22]} 20. d4 {[%emt 0:01:15]} Rae8 {[%emt 0:03:39]} 21. Ng5 {[%emt 0:02:39]} Rxe3 {[%emt 0:05:23]} 22. Nxf7 {[%emt 0:15:13]} Rd3 {[%emt 0:00:43]} 23. Nh6+ {[%emt 0:00:09]} Kh8 {[%emt 0:02:01]} 24. Qxd3 {[%emt 0:01:55]} Bxd3 {[%emt 0:01:49]} 25. Rxf8+ {[%emt 0:00:12]} Bxf8 {[%emt 0:00:02]} 26. Rxf8+ {[%emt 0:00:12]} Kg7 {[%emt 0:00:07]} 27. Rf7+ {[%emt 0:00:19]} Qxf7 {[%emt 0:00:09]} 28. Nxf7 {[%emt 0:00:06]} Kxf7 {[%emt 0:00:11]} 29. c5 {[%emt 0:01:11]} dxc5 {[%emt 0:16:14]} 1/2-1/2